fUST/lending_fUST_20240125
["ID","MTS","AMOUNT","RATE_DAILY","PERIOD"]
[312652834,1706136641967,-151.0,0.00044514,7]
[312652835,1706136641977,-151.0,0.00044514,7]
[312652836,1706136641986,-151.0,0.00044514,7]
[312652837,1706136641995,-151.0,0.00044514,7]
[312652838,1706136642006,-151.0,0.00044514,7]
[312652839,1706136642015,-151.0,0.00044514,7]
[312652840,1706136642025,-151.0,0.00044514,7]
[312652841,1706136642034,-19024.80738116,0.00044514,7]
[312652902,1706136828859,2710.75039911,0.0001631,2]
[312653108,1706137832147,-272.6306295,0.00024943,2]
[312653110,1706137832157,-145.88699667,0.00024944,2]
[312653115,1706137832209,-91.85453996,0.00024944,2]
[312653117,1706137832219,-161.07323855,0.00024944,2]
[312653119,1706137832230,-158.74528164,0.00024945,2]
[312653120,1706137832239,-498.54555384,0.0002496,5]
[312653122,1706137832250,-764.21692563,0.00025,2]
[312653124,1706137832259,-305.08256942,0.00025341,2]
[312653127,1706137832273,-1008.76414421,0.00025341,2]
[312653211,1706137838261,-688.13841462,0.00024942,2]
[312653213,1706137838271,-154.86062544,0.00024942,2]
[312653214,1706137838280,-188.29380735,0.0002529,2]
[312653216,1706137838289,-21544.50780264,0.00025341,2]
[312653218,1706137838298,-2111.92714121,0.00025341,2]
[312653330,1706137846335,-3443.73203731,0.00025341,2]
[312653331,1706137846345,-261.5413111,0.000274,2]
[312653332,1706137846355,-14208.94828582,0.000275,2]
[312653333,1706137846364,-15814.38999995,0.00027855,2]
[312653334,1706137846374,-603.79775591,0.00027898,2]
[312653335,1706137846383,-700.0,0.00028375,2]
[312653336,1706137846392,-290.18532393,0.00029448,2]
[312653338,1706137846401,-495.31945591,0.00029448,5]
[312653339,1706137846410,-1000.0,0.00029999,3]
[312653340,1706137846419,-1017.91632499,0.00029999,3]
[312653342,1706137846430,-154.86062544,0.0003,4]
[312653343,1706137846439,-244.25363051,0.00030135,4]
[312653344,1706137846448,-165.933429,0.00030137,2]
[312653346,1706137846457,-158.273752,0.00030137,2]
[312653348,1706137846466,-4104.72771243,0.00030688,4]
[312653350,1706137846475,-838.72,0.00030988,3]
[312653351,1706137846484,-1599.39,0.00030988,3]
[312653352,1706137846493,-154.87619189,0.00030998,4]
[312653353,1706137846502,-1199.3109008,0.00030998,4]
[312653355,1706137846511,-1197.97622761,0.00030998,4]
[312653356,1706137846520,-260.43027978,0.00030998,4]
[312653358,1706137846530,-3178.45633108,0.00030998,4]
[312653359,1706137846539,-2102.73698873,0.00030998,4]
[312653361,1706137846548,-5592.776115,0.00030998,2]
[312653362,1706137846557,-2073.27680769,0.00030998,4]
[312653363,1706137846567,-1273.73177583,0.00030998,4]
[312653364,1706137846576,-154.92253873,0.00030998,4]
[312653365,1706137846585,-10380.01540955,0.00030998,4]
[312653370,1706138098687,-500.0,0.00044491,60]
[312653371,1706138098709,-500.0,0.00044491,60]
[312653372,1706138098732,-206.78042742,0.00044491,60]
[312653373,1706138098756,-251.60146262,0.000448,120]
[312653374,1706138098778,-550.39778109,0.000449,120]
[312653375,1706138098799,-150.5,0.0004497,120]
[312653376,1706138098821,-607.0,0.0004497,120]
[312653377,1706138098842,-150.5,0.0004497,120]
[312653378,1706138098863,-228.0,0.0004497,120]
[312653379,1706138098885,-450.0,0.0004497,120]
[312653380,1706138098907,-150.5,0.0004498,120]
[312653381,1706138098928,-607.0,0.0004498,120]
[312653382,1706138098951,-150.5,0.0004498,120]
[312653383,1706138098973,-228.0,0.0004498,120]
[312653384,1706138098994,-247.77,0.0004498,120]
[312653385,1706138099015,-450.0,0.0004498,120]
[312653386,1706138099037,-150.5,0.0004499,120]
[312653387,1706138099058,-199.0,0.0004499,120]
[312653388,1706138099079,-607.0,0.0004499,120]
[312653389,1706138099101,-150.5,0.0004499,120]
[312653390,1706138099122,-276.46,0.0004499,120]
[312653391,1706138099143,-228.0,0.0004499,120]
[312653392,1706138099167,-150.5,0.0004499,120]
[312653393,1706138099189,-450.0,0.0004499,120]
[312653394,1706138099211,-1003.47591028,0.00045,120]
[312653395,1706138099234,-323.00467987,0.00045,120]
[312653396,1706138099264,-1703.6,0.0004875,90]
[312653397,1706138099379,-100000.0,0.00049,60]
[312653398,1706138099401,-30000.0,0.00049,120]
[312653399,1706138099423,-100000.0,0.000493,60]
[312653400,1706138099445,-538.76242677,0.00049315,120]
[312653401,1706138099467,-501.90194518,0.00049315,120]
[312653402,1706138099489,-647.86851153,0.00049315,120]
[312653403,1706138099512,-500.0,0.00049315,60]
[312653404,1706138099535,-500.0,0.00049315,120]
[312653405,1706138099558,-500.0,0.00049315,120]
[312653406,1706138099579,-500.0,0.00049315,120]
[312653407,1706138099602,-500.0,0.00049315,120]
[312653408,1706138099624,-500.0,0.00049315,120]
[312653409,1706138099645,-492.03071551,0.00049315,120]
[312653410,1706138099668,-500.0,0.00049315,120]
[312653411,1706138099690,-500.0,0.00049315,120]
[312653412,1706138099712,-600.0,0.00049315,120]
[312653413,1706138099734,-500.0,0.00049315,120]
[312653414,1706138099756,-500.0,0.00049315,120]
[312653415,1706138099778,-500.0,0.00049315,120]
[312653416,1706138099800,-500.0,0.00049315,120]
[312653417,1706138099822,-500.0,0.00049315,120]
[312653418,1706138099845,-500.0,0.00049315,120]
[312653419,1706138099867,-500.0,0.00049315,120]
[312653420,1706138099889,-521.67237618,0.00049315,120]
[312653421,1706138099913,-150.26524717,0.00049315,120]
[312653422,1706138099936,-500.0,0.00049315,120]
[312653423,1706138099958,-500.0,0.00049315,120]
[312653424,1706138099980,-199.1767477,0.00049315,120]
[312653425,1706138100003,-500.0,0.00049315,120]
[312653426,1706138100025,-155.13725514,0.00049315,120]
[312653427,1706138100047,-500.0,0.00049315,120]
[312653428,1706138100070,-500.0,0.00049315,120]
[312653429,1706138100093,-500.0,0.00049315,120]
[312653430,1706138100115,-521.65,0.00049315,120]
[312653431,1706138100138,-500.0,0.00049315,120]
[312653432,1706138100160,-1611.84,0.00049315,120]
[312653433,1706138100183,-500.0,0.00049315,120]
[312653434,1706138100205,-265.39429628,0.00049315,120]
[312653435,1706138100228,-647.03525598,0.00049315,120]
[312653436,1706138100251,-458.90718825,0.00049315,120]
[312653437,1706138100272,-501.03277653,0.00049315,120]
[312653438,1706138100295,-332.31605326,0.00049315,120]
[312653439,1706138100318,-500.0,0.00049315,120]
[312653440,1706138100340,-500.0,0.00049315,120]
[312653441,1706138100362,-556.95395008,0.00049315,120]
[312653442,1706138100384,-503.78873013,0.00049315,120]
[312653443,1706138100406,-500.0,0.00049315,120]
[312653444,1706138100428,-500.0,0.00049315,120]
[312653445,1706138100450,-500.0,0.00049315,120]
[312653446,1706138100473,-500.0,0.00049315,120]
[312653447,1706138100495,-500.0,0.00049315,120]
[312653448,1706138100517,-500.0,0.00049315,120]
[312653449,1706138100539,-500.0,0.00049315,120]
[312653450,1706138100560,-500.0,0.00049315,120]
[312653451,1706138100582,-500.0,0.00049315,120]
[312653452,1706138100604,-300.43093459,0.00049315,120]
[312653453,1706138100627,-500.0,0.00049315,120]
[312653454,1706138100649,-500.0,0.00049315,120]
[312653455,1706138100673,-501.54543215,0.00049315,120]
[312653456,1706138100696,-500.0,0.00049315,120]
[312653457,1706138100718,-560.55,0.00049315,120]
[312653458,1706138100741,-500.0,0.00049315,120]
[312653459,1706138100763,-500.0,0.00049315,120]
[312653460,1706138100787,-500.0,0.00049315,120]
[312653461,1706138100809,-500.0,0.00049315,120]
[312653462,1706138100831,-500.0,0.00049315,120]
[312653463,1706138100854,-500.0,0.00049315,120]
[312653464,1706138100876,-500.0,0.00049315,120]
[312653465,1706138100898,-500.0,0.00049315,120]
[312653466,1706138100921,-500.0,0.00049315,120]
[312653467,1706138100944,-500.0,0.00049315,120]
[312653468,1706138100966,-500.0,0.00049315,120]
[312653469,1706138100988,-500.0,0.00049315,120]
[312653470,1706138101010,-500.0,0.00049315,120]
[312653471,1706138101122,-500.0,0.00049315,120]
[312653472,1706138101146,-500.0,0.00049315,120]
[312653473,1706138101169,-500.0,0.00049315,120]
[312653474,1706138101191,-500.0,0.00049315,120]
[312653475,1706138101214,-500.0,0.00049315,120]
[312653476,1706138101237,-500.0,0.00049315,120]
[312653477,1706138101263,-500.0,0.00049315,120]
[312653478,1706138101287,-500.0,0.00049315,120]
[312653479,1706138101309,-359.56963126,0.00049315,120]
[312653480,1706138101332,-500.0,0.00049315,120]
[312653481,1706138101355,-500.0,0.00049315,120]
[312653482,1706138101379,-500.0,0.00049315,120]
[312653483,1706138101401,-501.637187,0.00049315,120]
[312653484,1706138101425,-180.89022087,0.00049315,120]
[312653485,1706138101448,-500.0,0.00049315,120]
[312653486,1706138101471,-500.0,0.00049315,120]
[312653487,1706138101495,-500.0,0.00049315,120]
[312653488,1706138101517,-500.0,0.00049315,120]
[312653489,1706138101540,-500.0,0.00049315,120]
[312653490,1706138101563,-500.0,0.00049315,120]
[312653491,1706138101587,-500.0,0.00049315,120]
[312653492,1706138101610,-821.7,0.00049315,120]
[312653493,1706138101632,-501.36832751,0.00049315,120]
[312653494,1706138101655,-500.0,0.00049315,120]
[312653495,1706138101677,-542.1,0.00049315,120]
[312653496,1706138101700,-674.55,0.00049315,120]
[312653497,1706138101722,-502.78340352,0.00049315,120]
[312653498,1706138101744,-500.0,0.00049315,120]
[312653499,1706138101765,-500.0,0.00049315,120]
[312653500,1706138101787,-426.6332942,0.00049315,120]
[312653501,1706138101809,-500.0,0.00049315,120]
[312653502,1706138101831,-500.0,0.00049315,120]
[312653503,1706138101852,-507.91661687,0.00049315,120]
[312653504,1706138101875,-500.0,0.00049315,120]
[312653505,1706138101898,-576.2,0.00049315,120]
[312653506,1706138101920,-500.0,0.00049315,120]
[312653507,1706138101942,-500.0,0.00049315,120]
[312653508,1706138101965,-500.0,0.00049315,120]
[312653509,1706138101987,-500.0,0.00049315,120]
[312653510,1706138102011,-500.0,0.00049315,120]
[312653511,1706138102036,-501.06258745,0.00049315,120]
[312653512,1706138102059,-500.0,0.00049315,120]
[312653513,1706138102082,-500.0,0.00049315,120]
[312653514,1706138102105,-500.0,0.00049315,120]
[312653515,1706138102127,-500.0,0.00049315,120]
[312653516,1706138102149,-548.24429202,0.00049315,120]
[312653517,1706138102172,-500.0,0.00049315,120]
[312653518,1706138102194,-500.0,0.00049315,120]
[312653519,1706138102217,-500.0,0.00049315,120]
[312653520,1706138102240,-500.0,0.00049315,120]
[312653521,1706138102263,-500.0,0.00049315,120]
[312653522,1706138102286,-500.0,0.00049315,120]
[312653523,1706138102308,-500.0,0.00049315,120]
[312653524,1706138102331,-502.33561111,0.00049315,120]
[312653525,1706138102354,-500.0,0.00049315,120]
[312653526,1706138102376,-521.27488894,0.00049315,120]
[312653527,1706138102399,-708.29,0.00049315,120]
[312653528,1706138102422,-500.0,0.00049315,120]
[312653529,1706138102445,-500.0,0.00049315,120]
[312653530,1706138102468,-500.0,0.00049315,120]
[312653531,1706138102490,-500.0,0.00049315,120]
[312653532,1706138102512,-500.0,0.00049315,120]
[312653533,1706138102534,-500.0,0.00049315,120]
[312653534,1706138102557,-500.0,0.00049315,120]
[312653535,1706138102580,-238.20546967,0.00049315,120]
[312653536,1706138102603,-436.4558184,0.00049315,120]
[312653537,1706138102625,-500.0,0.00049315,120]
[312653538,1706138102648,-731.74,0.00049315,120]
[312653539,1706138102670,-500.0,0.00049315,120]
[312653540,1706138102694,-331.14776948,0.00049315,120]
[312653541,1706138102717,-502.55179301,0.00049315,120]
[312653542,1706138102820,-190.92795835,0.00049315,120]
[312653543,1706138102844,-500.0,0.00049315,120]
[312653544,1706138102867,-501.32518437,0.00049315,120]
[312653545,1706138102889,-628.3,0.00049315,120]
[312653546,1706138102912,-500.0,0.00049315,120]
[312653547,1706138102934,-500.0,0.00049315,120]
[312653548,1706138102957,-500.0,0.00049315,120]
[312653549,1706138102980,-500.0,0.00049315,120]
[312653550,1706138103003,-500.0,0.00049315,120]
[312653551,1706138103026,-501.15471356,0.00049315,120]
[312653552,1706138103049,-501.96527411,0.00049315,120]
[312653553,1706138103071,-500.0,0.00049315,120]
[312653554,1706138103093,-500.0,0.00049315,120]
[312653555,1706138103115,-604.73044339,0.00049315,120]
[312653556,1706138103139,-623.57,0.00049315,120]
[312653557,1706138103162,-500.0,0.00049315,120]
[312653558,1706138103185,-504.96,0.00049315,120]
[312653559,1706138103207,-500.0,0.00049315,120]
[312653560,1706138103230,-500.0,0.00049315,120]
[312653561,1706138103259,-500.0,0.00049315,120]
[312653562,1706138103282,-500.0,0.00049315,120]
[312653563,1706138103306,-500.0,0.00049315,120]
[312653564,1706138103330,-541.2,0.00049315,120]
[312653565,1706138103355,-500.0,0.00049315,120]
[312653566,1706138103380,-621.03,0.00049315,120]
[312653567,1706138103403,-500.0,0.00049315,120]
[312653568,1706138103427,-500.0,0.00049315,120]
[312653569,1706138103451,-501.49575331,0.00049315,120]
[312653570,1706138103474,-500.0,0.00049315,120]
[312653571,1706138103496,-519.59,0.00049315,120]
[312653572,1706138103519,-500.0,0.00049315,120]
[312653573,1706138103541,-150.0,0.00049315,120]
[312653574,1706138103565,-504.07362141,0.00049315,120]
[312653575,1706138103588,-500.0,0.00049315,120]
[312653576,1706138103611,-646.43,0.00049315,120]
[312653577,1706138103635,-603.99,0.00049315,120]
[312653578,1706138103661,-500.0,0.00049315,120]
[312653579,1706138103685,-500.0,0.00049315,120]
[312653580,1706138103708,-500.0,0.00049315,120]
[312653581,1706138103731,-500.0,0.00049315,120]
[312653582,1706138103755,-581.59240625,0.00049315,120]
[312653583,1706138103777,-500.0,0.00049315,120]
[312653584,1706138103800,-500.0,0.00049315,120]
[312653585,1706138103823,-525.48,0.00049315,120]
[312653586,1706138103846,-500.0,0.00049315,120]
[312653587,1706138103871,-1064.19,0.00049315,120]
[312653588,1706138103895,-500.0,0.00049315,120]
[312653589,1706138103922,-382.19767195,0.00049315,120]
[312653590,1706138103947,-500.0,0.00049315,120]
[312653591,1706138103972,-500.0,0.00049315,120]
[312653592,1706138103996,-500.0,0.00049315,120]
[312653593,1706138104019,-500.0,0.00049315,120]
[312653594,1706138104046,-500.0,0.00049315,120]
[312653595,1706138104071,-501.10978779,0.00049315,120]
[312653596,1706138104096,-593.16,0.00049315,120]
[312653597,1706138104120,-500.0,0.00049315,120]
[312653598,1706138104143,-503.0312232,0.00049315,120]
[312653599,1706138104168,-500.0,0.00049315,120]
[312653600,1706138104192,-500.0,0.00049315,120]
[312653601,1706138104217,-503.44189834,0.00049315,120]
[312653602,1706138104242,-500.0,0.00049315,120]
[312653603,1706138104267,-1350.89,0.00049315,120]
[312653604,1706138104291,-1635.66,0.00049315,120]
[312653605,1706138104315,-500.0,0.00049315,120]
[312653606,1706138104339,-200.0,0.00049315,120]
[312653607,1706138104363,-500.0,0.00049315,120]
[312653608,1706138104388,-2252.64,0.00049315,120]
[312653609,1706138104415,-848.83,0.00049315,120]
[312653610,1706138104438,-500.0,0.00049315,120]
[312653611,1706138104545,-500.0,0.00049315,120]
[312653612,1706138104569,-500.0,0.00049315,120]
[312653613,1706138104594,-500.0,0.00049315,120]
[312653614,1706138104618,-500.0,0.00049315,120]
[312653615,1706138104660,-1911.98,0.00049315,120]
[312653616,1706138104688,-500.0,0.00049315,120]
[312653617,1706138104714,-502.75,0.00049315,120]
[312653618,1706138104740,-840.87,0.00049315,120]
[312653619,1706138104766,-500.0,0.00049315,120]
[312653620,1706138104791,-983.25,0.00049315,120]
[312653621,1706138104816,-543.83,0.00049315,120]
[312653622,1706138104841,-1320.33,0.00049315,120]
[312653623,1706138104866,-500.0,0.00049315,120]
[312653624,1706138104890,-500.0,0.00049315,120]
[312653625,1706138104915,-500.0,0.00049315,120]
[312653626,1706138104939,-231.6678701,0.00049315,120]
[312653627,1706138104964,-3361.98,0.00049315,120]
[312653628,1706138104989,-500.0,0.00049315,120]
[312653629,1706138105013,-500.0,0.00049315,120]
[312653630,1706138105038,-500.0,0.00049315,120]
[312653631,1706138105062,-500.0,0.00049315,120]
[312653632,1706138105086,-500.0,0.00049315,120]
[312653633,1706138105110,-221.65069764,0.00049315,120]
[312653634,1706138105134,-500.0,0.00049315,120]
[312653635,1706138105158,-500.0,0.00049315,120]
[312653636,1706138105184,-500.0,0.00049315,120]
[312653637,1706138105209,-500.0,0.00049315,120]
[312653638,1706138105234,-500.0,0.00049315,120]
[312653639,1706138105260,-500.0,0.00049315,120]
[312653640,1706138105284,-500.0,0.00049315,120]
[312653641,1706138105308,-500.0,0.00049315,120]
[312653642,1706138105333,-933.63,0.00049315,120]
[312653643,1706138105356,-500.0,0.00049315,120]
[312653644,1706138105380,-500.0,0.00049315,120]
[312653645,1706138105403,-526.50383166,0.00049315,120]
[312653646,1706138105429,-500.0,0.00049315,120]
[312653647,1706138105454,-500.0,0.00049315,120]
[312653648,1706138105479,-569.81,0.00049315,120]
[312653649,1706138105503,-225.30664138,0.00049315,120]
[312653650,1706138105526,-519.09,0.00049315,120]
[312653651,1706138105551,-771.42,0.00049315,120]
[312653652,1706138105575,-500.0,0.00049315,120]
[312653653,1706138105599,-500.0,0.00049315,120]
[312653654,1706138105624,-500.0,0.00049315,120]
[312653655,1706138105648,-343.79714304,0.00049315,120]
[312653656,1706138105672,-500.0,0.00049315,120]
[312653657,1706138105696,-500.0,0.00049315,120]
[312653658,1706138105719,-500.0,0.00049315,120]
[312653659,1706138105745,-500.0,0.00049315,60]
[312653660,1706138105769,-501.42300287,0.00049315,120]
[312653661,1706138105794,-500.0,0.00049315,120]
[312653662,1706138105817,-500.0,0.00049315,120]
[312653663,1706138105841,-500.0,0.00049315,120]
[312653664,1706138105865,-597.33,0.00049315,120]
[312653665,1706138105889,-500.0,0.00049315,120]
[312653666,1706138105914,-500.0,0.00049315,120]
[312653667,1706138105938,-500.0,0.00049315,120]
[312653668,1706138105963,-679.43,0.00049315,120]
[312653669,1706138105986,-500.0,0.00049315,120]
[312653670,1706138106010,-500.0,0.00049315,120]
[312653671,1706138106035,-500.0,0.00049315,120]
[312653672,1706138106059,-500.0,0.00049315,120]
[312653673,1706138106083,-500.0,0.00049315,120]
[312653674,1706138106107,-500.0,0.00049315,120]
[312653675,1706138106130,-500.0,0.00049315,120]
[312653676,1706138106154,-500.0,0.00049315,120]
[312653677,1706138106266,-541.66,0.00049315,120]
[312653678,1706138106295,-500.0,0.00049315,120]
[312653679,1706138106320,-735.65,0.00049315,120]
[312653680,1706138106344,-500.0,0.00049315,120]
[312653681,1706138106367,-554.29,0.00049315,120]
[312653682,1706138106391,-596.702541,0.00049315,120]
[312653683,1706138106415,-500.0,0.00049315,120]
[312653684,1706138106438,-500.0,0.00049315,120]
[312653685,1706138106462,-944.82,0.00049315,120]
[312653686,1706138106486,-500.0,0.00049315,120]
[312653687,1706138106510,-500.0,0.00049315,120]
[312653688,1706138106535,-500.0,0.00049315,120]
[312653689,1706138106560,-1084.21,0.00049315,120]
[312653690,1706138106584,-516.4,0.00049315,120]
[312653691,1706138106608,-597.63,0.00049315,120]
[312653692,1706138106631,-500.0,0.00049315,120]
[312653693,1706138106655,-576.59,0.00049315,120]
[312653694,1706138106679,-500.0,0.00049315,120]
[312653695,1706138106702,-502.48401567,0.00049315,120]
[312653696,1706138106725,-500.0,0.00049315,120]
[312653697,1706138106747,-603.2870263,0.000495,120]
[312653698,1706138106771,-500.0,0.00049589,60]
[312653699,1706138106794,-500.0,0.00049589,120]
[312653700,1706138106817,-500.0,0.00049589,120]
[312653701,1706138106839,-500.0,0.00049589,120]
[312653702,1706138106862,-500.0,0.00049589,120]
[312653703,1706138106886,-500.0,0.00049589,120]
[312653704,1706138106910,-600.0,0.00049589,120]
[312653705,1706138106933,-500.0,0.00049589,120]
[312653706,1706138106955,-500.0,0.00049589,120]
[312653707,1706138106981,-500.0,0.00049589,120]
[312653708,1706138107014,-500.0,0.00049589,120]
[312653709,1706138107044,-500.0,0.00049589,120]
[312653710,1706138107071,-500.0,0.00049589,120]
[312653711,1706138107096,-500.0,0.00049589,120]
[312653712,1706138107122,-500.0,0.00049589,120]
[312653713,1706138107147,-500.0,0.00049589,120]
[312653714,1706138107173,-500.0,0.00049589,120]
[312653715,1706138107197,-500.0,0.00049589,120]
[312653716,1706138107222,-496.92122167,0.00049589,120]
[312653717,1706138107246,-521.65,0.00049589,120]
[312653718,1706138107272,-500.0,0.00049589,120]
[312653719,1706138107297,-500.0,0.00049589,120]
[312653720,1706138107321,-1611.84,0.00049589,120]
[312653721,1706138107347,-500.0,0.00049589,120]
[312653722,1706138107371,-500.0,0.00049589,120]
[312653723,1706138107396,-502.15424633,0.00049589,120]
[312653724,1706138107419,-500.0,0.00049589,120]
[312653725,1706138107443,-500.0,0.00049589,120]
[312653726,1706138107466,-500.0,0.00049589,120]
[312653727,1706138107490,-500.0,0.00049589,120]
[312653728,1706138107516,-500.0,0.00049589,120]
[312653729,1706138107540,-500.0,0.00049589,120]
[312653730,1706138107566,-500.0,0.00049589,120]
[312653731,1706138107590,-500.0,0.00049589,120]
[312653732,1706138107614,-500.0,0.00049589,120]
[312653733,1706138107640,-500.0,0.00049589,120]
[312653734,1706138107667,-500.0,0.00049589,120]
[312653735,1706138107691,-560.55,0.00049589,120]
[312653736,1706138107715,-500.0,0.00049589,120]
[312653737,1706138107738,-500.0,0.00049589,120]
[312653738,1706138107762,-597.97234831,0.00049589,120]
[312653739,1706138107785,-500.0,0.00049589,120]
[312653740,1706138107808,-500.0,0.00049589,120]
[312653741,1706138107831,-550.88426875,0.00049589,120]
[312653742,1706138107954,-500.0,0.00049589,120]
[312653743,1706138107977,-500.0,0.00049589,120]
[312653744,1706138108000,-500.0,0.00049589,120]
[312653745,1706138108022,-500.0,0.00049589,120]
[312653746,1706138108045,-500.0,0.00049589,120]
[312653747,1706138108067,-500.0,0.00049589,120]
[312653748,1706138108089,-821.7,0.00049589,120]
[312653749,1706138108112,-500.0,0.00049589,120]
[312653750,1706138108134,-542.1,0.00049589,120]
[312653751,1706138108157,-674.55,0.00049589,120]
[312653752,1706138108181,-500.0,0.00049589,120]
[312653753,1706138108204,-500.0,0.00049589,120]
[312653754,1706138108227,-500.0,0.00049589,120]
[312653755,1706138108251,-500.0,0.00049589,120]
[312653756,1706138108274,-500.0,0.00049589,120]
[312653757,1706138108297,-576.2,0.00049589,120]
[312653758,1706138108320,-500.0,0.00049589,120]
[312653759,1706138108346,-500.0,0.00049589,120]
[312653760,1706138108368,-476.18518301,0.00049589,120]
[312653761,1706138108391,-500.0,0.00049589,120]
[312653762,1706138108415,-380.63372375,0.00049589,120]
[312653763,1706138108439,-500.0,0.00049589,120]
[312653764,1706138108462,-286.58773203,0.00049589,120]
[312653765,1706138108486,-500.0,0.00049589,120]
[312653766,1706138108510,-500.0,0.00049589,120]
[312653767,1706138108532,-500.0,0.00049589,120]
[312653768,1706138108556,-500.0,0.00049589,120]
[312653769,1706138108579,-500.0,0.00049589,120]
[312653770,1706138108602,-500.0,0.00049589,120]
[312653771,1706138108625,-500.0,0.00049589,120]
[312653772,1706138108649,-500.0,0.00049589,120]
[312653773,1706138108673,-500.0,0.00049589,120]
[312653774,1706138108696,-500.0,0.00049589,120]
[312653775,1706138108719,-708.29,0.00049589,120]
[312653776,1706138108743,-500.0,0.00049589,120]
[312653777,1706138108767,-500.0,0.00049589,120]
[312653778,1706138108790,-500.0,0.00049589,120]
[312653779,1706138108813,-500.0,0.00049589,120]
[312653780,1706138108835,-500.0,0.00049589,120]
[312653781,1706138108857,-500.0,0.00049589,120]
[312653782,1706138108879,-301.03052521,0.00049589,120]
[312653783,1706138108901,-500.0,0.00049589,120]
[312653784,1706138108923,-731.74,0.00049589,120]
[312653785,1706138108945,-500.0,0.00049589,120]
[312653786,1706138108968,-500.0,0.00049589,120]
[312653787,1706138108991,-628.3,0.00049589,120]
[312653788,1706138109013,-500.0,0.00049589,120]
[312653789,1706138109034,-500.0,0.00049589,120]
[312653790,1706138109056,-500.0,0.00049589,120]
[312653791,1706138109078,-542.3862763,0.00049589,120]
[312653792,1706138109100,-500.0,0.00049589,120]
[312653793,1706138109123,-500.0,0.00049589,120]
[312653794,1706138109144,-500.0,0.00049589,120]
[312653795,1706138109168,-623.57,0.00049589,120]
[312653796,1706138109190,-500.0,0.00049589,120]
[312653797,1706138109213,-504.96,0.00049589,120]
[312653798,1706138109237,-500.0,0.00049589,120]
[312653799,1706138109261,-500.0,0.00049589,120]
[312653800,1706138109287,-500.0,0.00049589,120]
[312653801,1706138109336,-500.0,0.00049589,120]
[312653802,1706138109390,-500.0,0.00049589,120]
[312653803,1706138109448,-541.2,0.00049589,120]
[312653804,1706138109576,-500.0,0.00049589,120]
[312653805,1706138109599,-621.03,0.00049589,120]
[312653806,1706138109623,-500.0,0.00049589,120]
[312653807,1706138109646,-500.0,0.00049589,120]
[312653808,1706138109669,-500.0,0.00049589,120]
[312653809,1706138109693,-519.59,0.00049589,120]
[312653810,1706138109716,-500.0,0.00049589,120]
[312653811,1706138109738,-150.0,0.00049589,120]
[312653812,1706138109761,-500.0,0.00049589,120]
[312653813,1706138109783,-646.43,0.00049589,120]
[312653814,1706138109806,-603.99,0.00049589,120]
[312653815,1706138109829,-500.0,0.00049589,120]
[312653816,1706138109852,-500.0,0.00049589,120]
[312653817,1706138109874,-500.0,0.00049589,120]
[312653818,1706138109897,-500.0,0.00049589,120]